lending/lending_fUSD_20250430
["ID","MTS","AMOUNT","RATE_DAILY","PERIOD"]
[359422693,1746004240436,-300.0,0.00024899,10]
[359422694,1746004240447,-322.76299079,0.00024899,10]
[359422695,1746004240458,-782.2268315,0.000249,2]
[359422696,1746004240467,-10252.23772763,0.000249,2]
[359422697,1746004240476,-195411.16402789,0.000249,3]
[359422698,1746004240490,-312.07699153,0.000249,3]
[359422699,1746004240502,-1065.5588997,0.000249,3]
[359422700,1746004240513,-5000.57911584,0.000249,3]
[359422701,1746004240607,-20477.47832502,0.000249,3]
[359422702,1746004240618,-9054.74075626,0.000249,3]
[359422703,1746004240628,-1005.4806115,0.000249,3]
[359422704,1746004240656,-234941.805,0.000249,3]
[359422705,1746004240686,-30813.04279794,0.000249,3]
[359422706,1746004240700,-59915.0114445,0.000249,3]
[359422707,1746004240711,-1717.6072915,0.000249,3]
[359422742,1746004243219,-1810.8,0.000249,3]
[359422743,1746004243273,-758.59391184,0.000249,3]
[359422744,1746004243284,-529.14066669,0.000249,3]
[359422745,1746004243294,-791.76021265,0.000249,3]
[359422746,1746004243430,-55341.36203414,0.000249,3]
[359422747,1746004243439,-151.0,0.000249,2]
[359422748,1746004243449,-450.0,0.00025,2]
[359422749,1746004243460,-357.80752,0.00025,2]
[359422750,1746004243469,-280.0,0.00025,2]
[359422751,1746004243478,-1000.0,0.00025152,2]
[359422752,1746004243487,-1025.28283184,0.00025152,2]
[359422753,1746004243498,-515.11545751,0.00025152,2]
[359422754,1746004243507,-151.0,0.00025159,2]
[359422755,1746004243517,-231.28369723,0.00025159,2]
[359422756,1746004243526,-823.0,0.00025278,2]
[359422757,1746004243537,-300.0,0.00025278,2]
[359422758,1746004243546,-2392.69424247,0.00025279,5]
[359422759,1746004243556,-1000.0,0.00025352,2]
[359422760,1746004243565,-501.88070055,0.00025452,2]
[359422761,1746004243575,-1000.0,0.00025452,2]
[359422762,1746004243584,-1000.0,0.00025452,2]
[359422763,1746004243593,-137.22261899,0.00025452,2]
[359422764,1746004243605,-385.21785894,0.00025452,2]
[359422765,1746004243614,-885.72840012,0.00025452,2]
[359422766,1746004243624,-627.27194259,0.00025452,2]
[359422767,1746004243633,-512.16715585,0.00025452,2]
[359422768,1746004243642,-1000.0,0.00025452,2]
[359422769,1746004243653,-1000.0,0.00025452,2]
[359422770,1746004243662,-1129.19071202,0.00025452,2]
[359422771,1746004243672,-1000.0,0.00025452,2]
[359422772,1746004243681,-1001.90942623,0.00025452,2]
[359422773,1746004243690,-1000.0,0.00025452,2]
[359422774,1746004243699,-1002.0928181,0.00025452,2]
[359422775,1746004243709,-3292.0,0.00025645,2]
[359422776,1746004243719,-258.22,0.00025937,2]
[359422777,1746004243728,-922.0,0.00026078,2]
[359422778,1746004243737,-1339.0,0.00026078,2]
[359422779,1746004243747,-154.065,0.00026078,2]
[359422780,1746004243756,-797.0,0.00026078,2]
[359422781,1746004243765,-1289.0,0.00026078,2]
[359422782,1746004243774,-584.625,0.00026078,2]
[359422783,1746004243783,-1466.905,0.00026078,2]
[359422784,1746004243792,-1037.602,0.00026078,2]
[359422785,1746004243801,-622.48,0.00026078,2]
[359422786,1746004243811,-2068.0,0.00026078,2]
[359422787,1746004243821,-1811.86433435,0.00026078,2]
[359422788,1746004246147,-209.66419456,0.00026078,2]
[359422789,1746004246157,-2189.13566565,0.00026078,2]
[359422790,1746004246167,-935.277,0.00026078,2]
[359422791,1746004246177,-878.0,0.00026078,2]
[359422792,1746004246187,-219.529,0.00026078,2]
[359422793,1746004246196,-263.24,0.00026078,2]
[359422794,1746004246205,-6746.0,0.00026078,2]
[359422795,1746004246214,-230.905,0.00026078,2]
[359422796,1746004246223,-2392.69424247,0.00026176,6]
[359422797,1746004246232,-1926.13,0.00026179,2]
[359422798,1746004246241,-1000.0,0.000263,2]
[359422799,1746004246371,-1000.0,0.000263,2]
[359422800,1746004246383,-100.67845306,0.00026375,2]
[359422801,1746004246395,-181.89836795,0.00026375,2]
[359422802,1746004246405,-271.31,0.00026408,2]
[359422803,1746004246415,-151.0,0.00026528,2]
[359422804,1746004246425,-239.84119403,0.00026528,2]
[359422805,1746004246435,-4255.13,0.00026591,2]
[359422806,1746004246444,-2761.21,0.00026591,2]
[359422807,1746004246455,-399.31699585,0.00026631,2]
[359422808,1746004246468,-6631.92249707,0.00027,2]
[359422809,1746004246477,-500.0,0.00027,2]
[359422810,1746004246487,-250.0,0.00027028,2]
[359422811,1746004246499,-500.0,0.00027041,2]
[359422812,1746004246509,-258.22,0.00027064,2]
[359422813,1746004246518,-1000.0,0.00027069,2]
[359422814,1746004246527,-1009.321149,0.00027072,7]
[359422815,1746004246559,-1383.37309347,0.00027072,7]
[359422816,1746004246570,-37679.35287732,0.00027373,2]
[359422817,1746004246579,-500.0,0.00027397,2]
[359422818,1746004246589,-300.0,0.00027397,2]
[359422819,1746004246598,-498.81,0.00027397,2]
[359422820,1746004246607,-367.26,0.00027397,2]
[359422821,1746004246617,-500.0,0.00027397,5]
[359422822,1746004246627,-325.48799504,0.000274,2]
[359422823,1746004246636,-2000.0,0.000275,4]
[359422824,1746004246646,-1152.0,0.00027537,2]
[359422825,1746004246655,-10743.76216956,0.00027741,2]
[359422826,1746004246664,-151.0,0.00027897,2]
[359422827,1746004246674,-248.71531821,0.00027897,2]
[359422829,1746004246683,-1000.0,0.000279,2]
[359422831,1746004246692,-1000.0,0.00027945,5]
[359422832,1746004246701,-2392.69424247,0.00027969,7]
[359422833,1746004246711,-809.06943886,0.0002799,2]
[359422834,1746004246720,-4609.0,0.00028073,2]
[359422835,1746004246729,-258.22,0.00028192,2]
[359422836,1746004246739,-1926.13,0.00028442,2]
[359422837,1746004246749,-1044.5916825,0.00028493,5]
[359422838,1746004246758,-524.73515959,0.00028538,2]
[359422839,1746004246767,-300.0,0.00028622,10]
[359422840,1746004246777,-500.0,0.00028622,10]
[359422841,1746004246786,-241.0,0.00028623,2]
[359422842,1746004246795,-197.0,0.00028623,2]
[359422843,1746004246805,-218.315,0.00028623,2]
[359422844,1746004246814,-151.213,0.00028623,2]
[359422845,1746004246823,-151.419,0.00028623,2]
[359422846,1746004246832,-150.0,0.00028623,2]
[359422847,1746004246841,-156.91,0.00028623,2]
[359422848,1746004246850,-498.81,0.00028767,2]
[359422849,1746004246859,-158.46,0.00028777,2]
[359422850,1746004246869,-158.46,0.00028795,2]
[359422851,1746004246879,-158.46,0.00028813,2]
[359422852,1746004246888,-158.46,0.00028831,2]
[359422853,1746004246896,-158.46,0.00028849,2]
[359422854,1746004246906,-2392.69424247,0.00028866,8]
[359422855,1746004246915,-158.46,0.00028867,2]
[359422856,1746004246924,-158.46,0.00028885,2]
[359422857,1746004246934,-158.46,0.00028903,2]
[359422858,1746004246943,-158.46,0.00028921,2]
[359422859,1746004246952,-5728.77712934,0.00029,2]
[359422860,1746004246961,-550.0,0.00029,2]
[359422861,1746004246971,-922.0,0.00029078,2]
[359422862,1746004246981,-1339.0,0.00029078,2]
[359422863,1746004246990,-797.0,0.00029078,2]
[359422864,1746004247000,-1289.0,0.00029078,2]
[359422865,1746004247010,-580.0,0.00029078,2]
[359422866,1746004247020,-1014.32664174,0.00029078,2]
[359422867,1746004247033,-434.67335826,0.00029078,2]
[359422868,1746004247042,-92.11802157,0.00029078,2]
[359422869,1746004248464,-820.88197843,0.00029078,2]
[359422870,1746004248474,-549.0,0.00029078,2]
[359422871,1746004248484,-2068.0,0.00029078,2]
[359422872,1746004248493,-4001.0,0.00029078,2]
[359422873,1746004248503,-875.0,0.00029078,2]
[359422874,1746004248512,-878.0,0.00029078,2]
[359422875,1746004248522,-153.0,0.00029078,2]
[359422876,1746004248533,-153.0,0.00029078,2]
[359422877,1746004248544,-6746.0,0.00029078,2]
[359422878,1746004248554,-1000.0,0.000291,2]
[359422879,1746004248564,-151.0,0.00029266,2]
[359422880,1746004248573,-257.91778498,0.00029266,2]
[359422881,1746004248582,-258.22,0.0002932,2]
[359422882,1746004248592,-1000.0,0.0002953,2]
[359422883,1746004248601,-2392.69424247,0.00029762,8]
[359422884,1746004248611,-1613.0,0.00029999,2]
[359422885,1746004248621,-302.68862118,0.0003,5]
[359422886,1746004248631,-469.999999,0.0003,2]
[359422887,1746004248641,-302.22015725,0.0003,2]
[359422888,1746004248651,-152.18,0.00030137,2]
[359422889,1746004248660,-498.81,0.00030137,2]
[359422890,1746004248670,-400.0,0.00030137,5]
[359422891,1746004248679,-400.0,0.00030137,5]
[359422892,1746004248689,-1000.0,0.000303,2]
[359422893,1746004248698,-258.22,0.00030447,2]
[359422894,1746004248708,-151.0,0.00030635,2]
[359422895,1746004248717,-267.46074303,0.00030635,2]
[359422896,1746004248726,-2392.69424247,0.00030659,9]
[359422897,1746004248736,-1926.13,0.00030706,2]
[359422898,1746004248745,-6453.0,0.0003073,2]
[359422899,1746004248754,-206.0,0.0003091,2]
[359422900,1746004248764,-500.0,0.00030959,2]
[359422901,1746004248774,-328.78866799,0.00031,5]
[359422902,1746004248783,-600.0,0.00031,2]
[359422903,1746004248793,-513.33765429,0.0003121,2]
[359422904,1746004248802,-1000.0,0.000315,2]
[359422905,1746004248811,-498.81,0.00031507,2]
[359422906,1746004248821,-2392.69424247,0.00031555,10]
[359422907,1746004248830,-150.0,0.00031623,2]
[359422908,1746004248839,-150.0,0.00031623,2]
[359422909,1746004248849,-151.0,0.00032004,2]
[359422910,1746004248859,-277.35679052,0.00032004,2]
[359422911,1746004248869,-206.0,0.0003205,2]
[359422912,1746004248878,-922.0,0.00032078,2]
[359422913,1746004248889,-1013.397,0.00032078,2]
[359422914,1746004248898,-797.0,0.00032078,2]
[359422915,1746004248907,-1289.0,0.00032078,2]
[359422916,1746004248917,-580.0,0.00032078,2]
[359422917,1746004248926,-1449.0,0.00032078,2]
[359422918,1746004248936,-913.0,0.00032078,2]
[359422919,1746004248945,-549.0,0.00032078,2]
[359422920,1746004248955,-2068.0,0.00032078,2]
[359422921,1746004248964,-4001.0,0.00032078,2]
[359422922,1746004248973,-875.0,0.00032078,2]
[359422923,1746004248982,-878.0,0.00032078,2]
[359422924,1746004248991,-153.0,0.00032078,2]
[359422925,1746004249001,-153.0,0.00032078,2]
[359422926,1746004249010,-6746.0,0.00032078,2]
[359422927,1746004249019,-2392.69424247,0.00032452,10]
[359422928,1746004249029,-158.69407634,0.00032793,15]
[359422929,1746004249038,-282.57682101,0.0003285,4]
[359422930,1746004249048,-524.73515959,0.00032857,2]
[359422931,1746004249057,-9071.68100635,0.00032857,2]
[359422932,1746004249066,-1511.02857496,0.00032857,2]
[359422933,1746004249076,-498.81,0.00032877,2]
[359422934,1746004249086,-1000.0,0.000329,7]
[359422935,1746004249095,-1926.13,0.0003297,2]
[359422936,1746004249105,-650.0,0.00033,2]
[359422937,1746004249114,-367.26,0.00033165,2]
[359422938,1746004249124,-206.0,0.0003319,2]
[359422939,1746004249133,-2392.69424247,0.00033348,11]
[359422940,1746004249143,-151.0,0.00033373,2]
[359422941,1746004249152,-287.61899177,0.00033373,2]
[359422942,1746004249162,-6997.0,0.00033638,3]
[359422943,1746004249171,-500.0,0.00033999,10]
[359422944,1746004249180,-262.6,0.00034,2]
[359422945,1746004249190,-262.6,0.00034,2]
[359422946,1746004249199,-262.6,0.00034,2]
[359422947,1746004249208,-262.6,0.00034,2]
[359422948,1746004249218,-262.6,0.00034,2]
[359422949,1746004249227,-262.6,0.00034,2]
[359422950,1746004249236,-262.6,0.00034,2]
[359422951,1746004249246,-262.6,0.00034,2]
[359422952,1746004249256,-262.6,0.00034,2]
[359422953,1746004249266,-262.6,0.00034,2]
[359422954,1746004249275,-262.6,0.00034,2]
[359422955,1746004249285,-262.6,0.00034,2]
[359422956,1746004249297,-262.6,0.00034,2]
[359422957,1746004249307,-262.6,0.00034,2]
[359422958,1746004249316,-262.6,0.00034,2]
[359422959,1746004249327,-262.6,0.00034,2]
[359422960,1746004249337,-262.6,0.00034,2]
[359422961,1746004249347,-262.6,0.00034,2]
[359422962,1746004249357,-262.6,0.00034,2]
[359422963,1746004249367,-262.6,0.00034,2]
[359422964,1746004249377,-262.6,0.00034,2]
[359422965,1746004249386,-262.6,0.00034,2]
[359422966,1746004249396,-262.6,0.00034,2]
[359422967,1746004249407,-262.6,0.00034,2]
[359422968,1746004249418,-262.6,0.00034,2]
[359422969,1746004249428,-262.6,0.00034,2]
[359422970,1746004249439,-262.6,0.00034,2]
[359422971,1746004249450,-262.6,0.00034,2]
[359422972,1746004249464,-262.6,0.00034,2]
[359422973,1746004249474,-262.6,0.00034,2]
[359422974,1746004249484,-262.6,0.00034,2]
[359422975,1746004249494,-262.6,0.00034,2]
[359422976,1746004249506,-262.6,0.00034,2]
[359422977,1746004249515,-262.6,0.00034,2]
[359422978,1746004249625,-262.6,0.00034,2]
[359422979,1746004249635,-262.6,0.00034,2]
[359422980,1746004249645,-262.6,0.00034,2]
[359422981,1746004249655,-262.6,0.00034,2]
[359422982,1746004249664,-262.6,0.00034,2]
[359422983,1746004249674,-262.6,0.00034,2]
[359422984,1746004249683,-262.6,0.00034,2]
[359422985,1746004249693,-262.6,0.00034,2]
[359422986,1746004249703,-262.6,0.00034,2]
[359422987,1746004249712,-262.6,0.00034,2]
[359422988,1746004249722,-262.6,0.00034,2]
[359422989,1746004249732,-262.6,0.00034,2]
[359422990,1746004249741,-262.6,0.00034,2]
[359422991,1746004249751,-262.6,0.00034,2]
[359422992,1746004249761,-262.6,0.00034,2]
[359422993,1746004249771,-262.6,0.00034,2]
[359422994,1746004249780,-262.6,0.00034,2]
[359422995,1746004249790,-262.6,0.00034,2]
[359422996,1746004249799,-262.6,0.00034,2]
[359422997,1746004249809,-262.6,0.00034,2]
[359422998,1746004249819,-262.6,0.00034,2]
[359422999,1746004249828,-262.6,0.00034,2]
[359423000,1746004249838,-262.6,0.00034,2]
[359423001,1746004249847,-262.6,0.00034,2]
[359423002,1746004249856,-262.6,0.00034,2]
[359423003,1746004249866,-262.6,0.00034,2]
[359423004,1746004249875,-262.6,0.00034,2]
[359423005,1746004249885,-262.6,0.00034,2]
[359423006,1746004249895,-262.6,0.00034,2]
[359423007,1746004249904,-262.6,0.00034,2]
[359423008,1746004249914,-262.6,0.00034,2]
[359423009,1746004249924,-262.6,0.00034,2]
[359423010,1746004249934,-262.6,0.00034,2]
[359423011,1746004249944,-262.6,0.00034,2]
[359423012,1746004249954,-262.6,0.00034,2]
[359423013,1746004249964,-262.6,0.00034,2]
[359423014,1746004249974,-262.6,0.00034,2]
[359423015,1746004249983,-262.6,0.00034,2]
[359423016,1746004249993,-262.6,0.00034,2]
[359423017,1746004250002,-262.6,0.00034,2]
[359423018,1746004250012,-262.6,0.00034,2]
[359423019,1746004250021,-262.6,0.00034,2]
[359423020,1746004250031,-262.6,0.00034,2]
[359423021,1746004250040,-262.6,0.00034,2]
[359423022,1746004250049,-262.6,0.00034,2]
[359423023,1746004250057,-262.6,0.00034,2]
[359423024,1746004250067,-262.6,0.00034,2]
[359423025,1746004250076,-262.6,0.00034,2]
[359423026,1746004250085,-262.6,0.00034,2]
[359423027,1746004250094,-262.6,0.00034,2]
[359423028,1746004250104,-262.6,0.00034,2]
[359423029,1746004250113,-262.6,0.00034,2]
[359423030,1746004250123,-262.6,0.00034,2]
[359423031,1746004250134,-262.6,0.00034,2]
[359423032,1746004250143,-262.6,0.00034,2]
[359423033,1746004250153,-262.6,0.00034,2]
[359423034,1746004250163,-262.6,0.00034,2]
[359423035,1746004250173,-262.6,0.00034,2]
[359423036,1746004250182,-262.6,0.00034,2]
[359423037,1746004250192,-262.6,0.00034,2]
[359423038,1746004250202,-262.6,0.00034,2]
[359423039,1746004250212,-262.6,0.00034,2]
[359423040,1746004250222,-262.6,0.00034,2]
[359423041,1746004250231,-262.6,0.00034,2]
[359423042,1746004250241,-262.6,0.00034,2]
[359423043,1746004250251,-4936.0,0.00034,5]
[359423044,1746004250266,-1000.0,0.000342,7]
[359423045,1746004250283,-2392.69424247,0.00034245,11]
[359423046,1746004250301,-206.0,0.0003432,2]
[359423047,1746004250320,-150.0,0.00034548,10]
[359423048,1746004250334,-151.0,0.00034742,2]
[359423049,1746004250353,-298.26089446,0.00034742,2]
[359423050,1746004250371,-152.0,0.00034899,3]
[359423051,1746004250390,-500.0,0.00034979,10]
[359423052,1746004250411,-364467.75489514,0.0003498,2]
[359423053,1746004250427,-1049.67999763,0.0003498,2]
[359423054,1746004250446,-152.040448,0.0003498,7]
[359423055,1746004250463,-484.39796441,0.00035,2]
[359423056,1746004250477,-6035.14946586,0.00035,2]
[359423057,1746004250497,-400.0,0.00035,5]
[359423058,1746004250512,-700.0,0.00035,2]
[359423059,1746004250529,-2000.0,0.00035,4]
[359423060,1746004250545,-609.154,0.00035078,2]
[359423061,1746004250561,-797.0,0.00035078,2]
[359423062,1746004250577,-1115.603,0.00035078,2]
[359423063,1746004250595,-580.0,0.00035078,2]
[359423064,1746004250613,-1449.0,0.00035078,2]
[359423065,1746004250629,-913.0,0.00035078,2]
[359423066,1746004250646,-549.0,0.00035078,2]
[359423067,1746004250661,-2068.0,0.00035078,2]
[359423068,1746004250676,-4001.0,0.00035078,2]
[359423069,1746004250691,-875.0,0.00035078,2]
[359423070,1746004250705,-878.0,0.00035078,2]
[359423071,1746004250721,-153.0,0.00035078,2]
[359423072,1746004250736,-153.0,0.00035078,2]
[359423073,1746004250751,-6746.0,0.00035078,2]
[359423074,1746004250766,-2392.69424247,0.00035141,12]
[359423075,1746004250781,-152.18,0.0003516,2]
[359423076,1746004250795,-1500.0,0.00035171,5]
[359423077,1746004250809,-1926.13,0.00035234,2]
[359423078,1746004250827,-1500.0,0.00035371,5]
[359423079,1746004250841,-206.0,0.0003546,2]
[359423080,1746004250856,-1159.22498763,0.00035471,5]
[359423081,1746004250872,-1500.0,0.00035471,5]
[359423082,1746004250887,-1500.0,0.00035471,5]
[359423083,1746004250902,-1500.0,0.00035471,5]
[359423084,1746004250916,-502.57789751,0.00035471,5]
[359423085,1746004250933,-580.14233262,0.00035471,5]
[359423086,1746004250947,-150.0,0.00035561,2]
[359423087,1746004250961,-670.59290321,0.00035755,10]
[359423088,1746004250976,-12500.0,0.00035756,5]
[359423089,1746004250991,-12500.0,0.00035765,5]
[359423090,1746004251006,-12500.0,0.00035773,5]
[359423091,1746004251019,-12500.0,0.00035782,5]
[359423092,1746004251034,-12500.0,0.00035791,5]
[359423093,1746004251049,-12500.0,0.000358,5]
[359423094,1746004251064,-160.748582,0.00035808,7]
[359423095,1746004251080,-151.0,0.00035808,7]
[359423096,1746004251095,-151.0,0.00035808,7]
[359423097,1746004251110,-151.0,0.00035808,7]
[359423098,1746004251125,-151.0,0.00035808,7]
[359423099,1746004251141,-151.0,0.00035808,7]
[359423100,1746004251156,-154.748141,0.00035808,7]
[359423101,1746004251172,-12500.0,0.00035809,5]
[359423102,1746004251185,-12500.0,0.00035817,5]
[359423103,1746004251200,-12500.0,0.00035817,5]
[359423104,1746004251213,-151.0,0.00035818,7]
[359423105,1746004251228,-151.0,0.00035818,7]
[359423106,1746004251244,-378.516395,0.00035818,7]
[359423107,1746004251259,-378.516395,0.00035818,7]
[359423108,1746004251274,-151.0,0.00035818,7]
[359423109,1746004251400,-151.0,0.00035818,7]
[359423110,1746004251451,-151.0,0.00035818,7]
[359423111,1746004251466,-151.0,0.00035818,7]
[359423112,1746004251476,-151.0,0.00035818,7]
[359423113,1746004251486,-151.0,0.00035826,7]
[359423114,1746004251497,-151.0,0.00035826,7]
[359423115,1746004251507,-151.0,0.00035826,7]
[359423116,1746004251517,-191.330096,0.00035826,7]
[359423117,1746004251527,-151.0,0.00035826,7]
[359423118,1746004251537,-151.0,0.00035826,7]
[359423120,1746004251547,-151.0,0.00035826,5]
[359423122,1746004251557,-336.767854,0.00035826,7]
[359423124,1746004251565,-336.767854,0.00035826,7]
[359423126,1746004251576,-12500.0,0.00035826,5]
[359423128,1746004251586,-12500.0,0.00035826,5]
[359423130,1746004251595,-150.0,0.00035827,2]
[359423132,1746004251605,-12500.0,0.00035835,5]
[359423134,1746004251614,-12500.0,0.00035835,5]
[359423136,1746004251624,-151.0,0.00035835,7]
[359423138,1746004251633,-161.477533,0.00035835,7]
[359423140,1746004251642,-151.0,0.00035835,7]
[359423142,1746004251652,-151.0,0.00035835,7]
[359423144,1746004251661,-151.0,0.00035835,7]
[359423146,1746004251671,-177.093944,0.00035835,7]
[359423148,1746004251680,-177.093944,0.00035835,7]
[359423150,1746004251690,-12500.0,0.00035844,5]
[359423152,1746004251699,-12500.0,0.00035844,5]
[359423154,1746004251708,-12500.0,0.00035853,5]
[359423156,1746004251718,-12500.0,0.00035853,5]
[359423158,1746004251727,-12500.0,0.00035853,5]
[359423160,1746004251736,-12500.0,0.00035861,5]
[359423162,1746004251746,-12500.0,0.00035861,5]
[359423164,1746004251755,-12500.0,0.00035861,5]
[359423165,1746004251764,-152.556342,0.0003587,7]
[359423167,1746004251773,-151.0,0.0003587,7]
[359423169,1746004251782,-151.0,0.0003587,7]
[359423171,1746004251792,-151.0,0.0003587,7]
[359423173,1746004251801,-151.0,0.0003587,7]
[359423175,1746004251810,-151.0,0.0003587,7]
[359423177,1746004251820,-184.57912,0.0003587,7]
[359423179,1746004251829,-184.57912,0.0003587,7]
[359423181,1746004251839,-12500.0,0.0003587,5]
[359423183,1746004251848,-12500.0,0.0003587,5]
[359423185,1746004251857,-12500.0,0.0003587,5]
[359423187,1746004251867,-12500.0,0.00035879,5]
[359423189,1746004251876,-3864.04420034,0.00035879,5]
[359423191,1746004251885,-151.0,0.00035879,7]
[359423193,1746004251894,-12500.0,0.00035879,5]
[359423195,1746004251903,-12500.0,0.00035879,5]
[359423197,1746004251912,-150.0,0.00035893,2]
[359423199,1746004251921,-2392.69424247,0.00036038,13]
[359423201,1746004251930,-151.0,0.00036111,2]
[359423203,1746004251939,-309.29654756,0.00036111,2]
[359423205,1746004251949,-150.0,0.00036149,2]
[359423207,1746004251958,-152.0,0.00036157,4]
[359423208,1746004251967,-150.0,0.00036196,2]
[359423210,1746004251977,-150.0,0.00036284,2]
[359423212,1746004251986,-150.0,0.000363,2]
[359423214,1746004251995,-150.0,0.00036446,2]
[359423216,1746004252005,-150.0,0.00036457,2]
[359423218,1746004252015,-150.0,0.00036463,2]
[359423220,1746004252024,-150.0,0.00036519,2]
[359423222,1746004252034,-150.0,0.00036566,2]
[359423225,1746004252046,-150.0,0.00036575,2]
[359423227,1746004252056,-206.0,0.0003659,2]
[359423229,1746004252065,-150.0,0.0003661,2]
[359423231,1746004252075,-150.0,0.00036654,2]
[359423233,1746004252085,-150.0,0.00036662,2]
[359423235,1746004252095,-150.0,0.00036662,2]
[359423236,1746004252104,-150.0,0.00036679,2]
[359423238,1746004252113,-150.0,0.00036698,2]
[359423240,1746004252123,-150.0,0.00036699,2]
[359423242,1746004252133,-150.0,0.00036736,2]
[359423244,1746004252143,-150.0,0.00036737,2]
[359423246,1746004252152,-150.0,0.00036745,2]
[359423248,1746004252162,-150.0,0.00036753,2]
[359423250,1746004252171,-150.0,0.00036758,2]
[359423252,1746004252181,-150.0,0.00036762,2]
[359423254,1746004252190,-150.0,0.00036765,2]
[359423256,1746004252200,-150.0,0.00036765,2]
[359423258,1746004252209,-150.0,0.00036766,2]
[359423260,1746004252219,-150.0,0.00036775,2]
[359423262,1746004252228,-150.0,0.00036783,2]
[359423264,1746004252238,-150.0,0.00036783,2]
[359423266,1746004252248,-150.0,0.00036804,2]
[359423268,1746004252257,-1000.0,0.00036812,7]
[359423270,1746004252267,-150.0,0.00036828,2]
[359423272,1746004252276,-150.0,0.00036833,2]
[359423274,1746004252286,-150.0,0.00036833,2]
[359423276,1746004252295,-150.0,0.00036837,2]
[359423278,1746004252305,-485.0,0.00036849,2]
[359423281,1746004252316,-150.0,0.0003686,2]
[359423282,1746004252325,-150.0,0.00036867,2]
[359423284,1746004252335,-150.0,0.00036892,2]
[359423286,1746004252344,-150.0,0.00036915,2]
[359423288,1746004252354,-2392.69424247,0.00036934,13]
[359423290,1746004252363,-150.0,0.00036939,2]
[359423292,1746004252373,-150.0,0.00036948,2]
[359423294,1746004252383,-150.0,0.00036954,2]
[359423296,1746004252393,-150.0,0.00036986,2]
[359423298,1746004252402,-150.0,0.00036996,2]
[359423300,1746004252413,-750.0,0.00037,2]
[359423302,1746004252425,-150.0,0.00037017,2]
[359423304,1746004252435,-150.0,0.00037024,2]
[359423306,1746004252445,-150.0,0.00037024,2]
[359423308,1746004252456,-150.0,0.00037038,2]
[359423310,1746004252466,-150.0,0.00037047,2]
[359423312,1746004252476,-150.0,0.00037061,2]
[359423314,1746004252486,-308.3761229,0.00037068,7]
[359423316,1746004252497,-1000.0,0.00037084,7]
[359423318,1746004252507,-150.0,0.00037101,2]
[359423320,1746004252516,-150.0,0.00037105,2]
[359423322,1746004252526,-150.0,0.0003711,2]
[359423324,1746004252536,-150.0,0.00037112,2]
[359423326,1746004252546,-150.0,0.00037121,2]
[359423328,1746004252556,-150.0,0.00037138,2]
[359423330,1746004252567,-150.0,0.00037153,2]
[359423333,1746004252581,-150.0,0.00037168,2]
[359423335,1746004252593,-1000.0,0.0003717,7]
[359423337,1746004252604,-524.73515959,0.00037175,2]